[Event "Titled Tuesday Blitz October 31 Early 2023"]
[White "Rustemov, Alexander"]
[Black "Golubev, Mikhail"]
[WhiteFideId "4119002"]
[BlackFideId "14100983"]
[WhiteElo "2899"]
[BlackElo "2577"]
[Result "1-0"]
[Round "3"]
[TimeControl "180+1"]
[Date "2023.10.31"]
[WhiteClock "0:01:57"]
[BlackClock "0:00:04"]
[Board "53"]

1. Nf3 {[%clk 0:03:00]}  d6 {[%clk 0:02:58]} 2. d4 {[%clk 0:03:00]}  Nf6 {[%clk 0:02:58]} 3. g3 {[%clk 0:03:00]}  g6 {[%clk 0:02:58]} 4. Bg2 {[%clk 0:03:00]}  Bg7 {[%clk 0:02:59]} 5. O-O {[%clk 0:03:01]}  O-O {[%clk 0:02:59]} 6. c4 {[%clk 0:03:01]}  c5 {[%clk 0:02:59]} 7. Nc3 {[%clk 0:03:00]}  Nc6 {[%clk 0:02:57]} 8. dxc5 {[%clk 0:03:01]}  dxc5 {[%clk 0:02:56]} 9. Bf4 {[%clk 0:03:01]}  Be6 {[%clk 0:02:43]} 10. Ne5 {[%clk 0:03:01]}  Nxe5 {[%clk 0:02:32]} 11. Bxe5 {[%clk 0:03:00]}  Qb6 {[%clk 0:02:27]} 12. Qb3 {[%clk 0:02:59]}  Nd7 {[%clk 0:02:05]} 13. Bxg7 {[%clk 0:02:57]}  Kxg7 {[%clk 0:02:06]} 14. Bxb7 {[%clk 0:02:37]}  Rab8 {[%clk 0:02:01]} 15. Bd5 {[%clk 0:02:37]}  Ne5 {[%clk 0:01:25]} 16. Qxb6 {[%clk 0:02:33]}  Rxb6 {[%clk 0:01:25]} 17. Bxe6 {[%clk 0:02:33]}  Rxe6 {[%clk 0:01:23]} 18. b3 {[%clk 0:02:32]}  Nc6 {[%clk 0:01:18]} 19. Rfd1 {[%clk 0:02:26]}  f5 {[%clk 0:01:09]} 20. e3 {[%clk 0:02:20]}  g5 {[%clk 0:00:42]} 21. Rd5 {[%clk 0:02:18]}  Kg6 {[%clk 0:00:42]} 22. Rxc5 {[%clk 0:02:16]}  f4 {[%clk 0:00:42]} 23. exf4 {[%clk 0:02:05]}  gxf4 {[%clk 0:00:43]} 24. Nd5 {[%clk 0:02:05]}  fxg3 {[%clk 0:00:22]} 25. Rxc6 {[%clk 0:02:04]}  gxf2+ {[%clk 0:00:15]} 26. Kg2 {[%clk 0:01:59]}  Rxc6 {[%clk 0:00:13]} 27. Nxe7+ {[%clk 0:01:59]}  Kg5 {[%clk 0:00:08]} 28. Nxc6 {[%clk 0:01:59]}  h5 {[%clk 0:00:08]} 29. Rf1 {[%clk 0:01:58]}  h4 {[%clk 0:00:04]} 30. Rxf2 {[%clk 0:01:57]} 1-0


[Site "https://www.chess.com"]

[Event "Titled Tuesday Blitz October 31 Early 2023"]
[White "Elsa167"]
[Black "Ekdyshman, Mikhail"]
[BlackFideId "4149416"]
[WhiteElo "2987"]
[BlackElo "2523"]
[Result "1-0"]
[Round "3"]
[TimeControl "180+1"]
[Date "2023.10.31"]
[WhiteClock "0:00:14"]
[BlackClock "0:00:00"]
[Board "58"]

1. d4 {[%clk 0:02:57]}  Nf6 {[%clk 0:02:59]} 2. c4 {[%clk 0:02:58]}  c5 {[%clk 0:02:58]} 3. d5 {[%clk 0:02:58]}  b5 {[%clk 0:02:59]} 4. cxb5 {[%clk 0:02:59]}  a6 {[%clk 0:02:59]} 5. bxa6 {[%clk 0:02:59]}  Bxa6 {[%clk 0:02:59]} 6. Nc3 {[%clk 0:03:00]}  d6 {[%clk 0:03:00]} 7. e4 {[%clk 0:03:01]}  Bxf1 {[%clk 0:03:00]} 8. Kxf1 {[%clk 0:03:02]}  Qc8 {[%clk 0:03:00]} 9. Nf3 {[%clk 0:03:00]}  g6 {[%clk 0:03:00]} 10. h3 {[%clk 0:02:59]}  Bg7 {[%clk 0:03:00]} 11. g3 {[%clk 0:02:59]}  O-O {[%clk 0:02:59]} 12. Kg2 {[%clk 0:02:59]}  Nbd7 {[%clk 0:02:53]} 13. Re1 {[%clk 0:02:59]}  Ne8 {[%clk 0:02:53]} 14. Bf4 {[%clk 0:02:58]}  Qb7 {[%clk 0:02:50]} 15. Qd2 {[%clk 0:02:54]}  Nc7 {[%clk 0:02:44]} 16. e5 {[%clk 0:02:42]}  dxe5 {[%clk 0:02:41]} 17. Nxe5 {[%clk 0:02:43]}  Nxe5 {[%clk 0:02:35]} 18. Bxe5 {[%clk 0:02:43]}  Bxe5 {[%clk 0:02:24]} 19. Rxe5 {[%clk 0:02:43]}  e6 {[%clk 0:02:24]} 20. Kh2 {[%clk 0:02:10]}  Rad8 {[%clk 0:02:16]} 21. d6 {[%clk 0:02:02]}  Nb5 {[%clk 0:01:28]} 22. Nxb5 {[%clk 0:01:47]}  Qxb5 {[%clk 0:01:28]} 23. Rc1 {[%clk 0:01:46]}  Qb6 {[%clk 0:01:12]} 24. d7 {[%clk 0:01:33]}  Qb7 {[%clk 0:01:09]} 25. Rd1 {[%clk 0:01:26]}  Qc6 {[%clk 0:00:53]} 26. b3 {[%clk 0:01:15]}  f6 {[%clk 0:00:48]} 27. Re3 {[%clk 0:01:15]}  Rf7 {[%clk 0:00:48]} 28. Rd3 {[%clk 0:01:16]}  c4 {[%clk 0:00:40]} 29. Rd6 {[%clk 0:01:11]}  Qf3 {[%clk 0:00:27]} 30. Qe3 {[%clk 0:00:47]}  Qxe3 {[%clk 0:00:15]} 31. fxe3 {[%clk 0:00:48]}  cxb3 {[%clk 0:00:15]} 32. axb3 {[%clk 0:00:48]}  Kf8 {[%clk 0:00:14]} 33. Rxe6 {[%clk 0:00:46]}  Rfxd7 {[%clk 0:00:14]} 34. Rxd7 {[%clk 0:00:47]}  Rxd7 {[%clk 0:00:14]} 35. Rxf6+ {[%clk 0:00:48]}  Ke7 {[%clk 0:00:14]} 36. Rb6 {[%clk 0:00:43]}  Rd2+ {[%clk 0:00:13]} 37. Kg1 {[%clk 0:00:43]}  Re2 {[%clk 0:00:09]} 38. b4 {[%clk 0:00:27]}  Rxe3 {[%clk 0:00:09]} 39. Kf2 {[%clk 0:00:28]}  Rb3 {[%clk 0:00:09]} 40. h4 {[%clk 0:00:28]}  Kf7 {[%clk 0:00:08]} 41. Rb7+ {[%clk 0:00:27]}  Kf6 {[%clk 0:00:08]} 42. Rb5 {[%clk 0:00:20]}  h6 {[%clk 0:00:06]} 43. g4 {[%clk 0:00:20]}  g5 {[%clk 0:00:04]} 44. h5 {[%clk 0:00:15]}  Kg7 {[%clk 0:00:05]} 45. Rb6 {[%clk 0:00:15]}  Kh7 {[%clk 0:00:05]} 46. Rb7+ {[%clk 0:00:14]}  Kg8 {[%clk 0:00:05]} 47. b5 {[%clk 0:00:15]}  Rb4 {[%clk 0:00:03]} 48. b6 {[%clk 0:00:13]}  Rxg4 {[%clk 0:00:03]} 49. Rc7 {[%clk 0:00:13]}  Rf4+ {[%clk 0:00:01]} 50. Kg3 {[%clk 0:00:13]}  Rb4 {[%clk 0:00:00]} 51. b7 {[%clk 0:00:14]} 1-0


[Site "https://www.chess.com"]

[Event "Titled Tuesday Blitz October 31 Early 2023"]
[White "Daneshvar, Bardiya"]
[Black "vishwa_vijeta"]
[WhiteFideId "12576468"]
[WhiteElo "2943"]
[BlackElo "2519"]
[Result "1-0"]
[Round "3"]
[TimeControl "180+1"]
[Date "2023.10.31"]
[WhiteClock "0:01:00"]
[BlackClock "0:00:06"]
[Board "59"]

1. Nf3 {[%clk 0:02:52]}  c5 {[%clk 0:02:59]} 2. g3 {[%clk 0:02:53]}  g6 {[%clk 0:02:57]} 3. Bg2 {[%clk 0:02:54]}  Bg7 {[%clk 0:02:57]} 4. O-O {[%clk 0:02:55]}  Nc6 {[%clk 0:02:57]} 5. c3 {[%clk 0:02:51]}  e5 {[%clk 0:02:57]} 6. d3 {[%clk 0:02:46]}  d5 {[%clk 0:02:56]} 7. e4 {[%clk 0:02:47]}  dxe4 {[%clk 0:02:51]} 8. dxe4 {[%clk 0:02:48]}  Qxd1 {[%clk 0:02:51]} 9. Rxd1 {[%clk 0:02:46]}  Nge7 {[%clk 0:02:50]} 10. a4 {[%clk 0:02:40]}  b6 {[%clk 0:02:41]} 11. Na3 {[%clk 0:02:37]}  O-O {[%clk 0:02:22]} 12. Nb5 {[%clk 0:02:34]}  h6 {[%clk 0:02:19]} 13. Be3 {[%clk 0:02:28]}  Rb8 {[%clk 0:02:03]} 14. Nd2 {[%clk 0:02:26]}  Be6 {[%clk 0:02:00]} 15. Bf1 {[%clk 0:02:23]}  Rfd8 {[%clk 0:01:59]} 16. f3 {[%clk 0:02:04]}  Kh7 {[%clk 0:01:56]} 17. Nc7 {[%clk 0:01:56]}  Bc8 {[%clk 0:01:36]} 18. Nc4 {[%clk 0:01:55]}  Rd7 {[%clk 0:01:19]} 19. Ne8 {[%clk 0:01:48]}  Rxd1 {[%clk 0:01:14]} 20. Rxd1 {[%clk 0:01:39]}  Bh8 {[%clk 0:01:12]} 21. Ncd6 {[%clk 0:01:35]}  Be6 {[%clk 0:01:10]} 22. Nc7 {[%clk 0:01:30]}  Bb3 {[%clk 0:01:09]} 23. Ra1 {[%clk 0:01:29]}  Rd8 {[%clk 0:01:05]} 24. Bc4 {[%clk 0:01:26]}  Bxc4 {[%clk 0:01:01]} 25. Nxc4 {[%clk 0:01:25]}  Bg7 {[%clk 0:00:57]} 26. Kf1 {[%clk 0:01:23]}  h5 {[%clk 0:00:57]} 27. Ke2 {[%clk 0:01:23]}  Bh6 {[%clk 0:00:57]} 28. Bf2 {[%clk 0:01:20]}  Kg7 {[%clk 0:00:56]} 29. Nb5 {[%clk 0:01:16]}  Nc8 {[%clk 0:00:39]} 30. Nc7 {[%clk 0:01:14]}  Nd6 {[%clk 0:00:35]} 31. Nxd6 {[%clk 0:01:12]}  Rxd6 {[%clk 0:00:36]} 32. Nd5 {[%clk 0:01:11]}  Kf8 {[%clk 0:00:35]} 33. Kd3 {[%clk 0:01:10]}  Ne7 {[%clk 0:00:34]} 34. Kc4 {[%clk 0:01:08]}  Nc6 {[%clk 0:00:29]} 35. b4 {[%clk 0:01:06]}  cxb4 {[%clk 0:00:28]} 36. cxb4 {[%clk 0:01:07]}  Ne7 {[%clk 0:00:28]} 37. a5 {[%clk 0:01:07]}  f5 {[%clk 0:00:27]} 38. axb6 {[%clk 0:01:07]}  axb6 {[%clk 0:00:27]} 39. Ra8+ {[%clk 0:01:07]}  Kf7 {[%clk 0:00:24]} 40. Ra7 {[%clk 0:01:07]}  Bf8 {[%clk 0:00:24]} 41. Bxb6 {[%clk 0:01:06]}  Ke8 {[%clk 0:00:22]} 42. Bc5 {[%clk 0:01:06]}  Nxd5 {[%clk 0:00:20]} 43. Bxd6 {[%clk 0:01:04]}  Nb6+ {[%clk 0:00:17]} 44. Kc5 {[%clk 0:01:05]}  Nc8 {[%clk 0:00:10]} 45. Ra8 {[%clk 0:01:01]}  Bxd6+ {[%clk 0:00:08]} 46. Kc6 {[%clk 0:01:02]}  Kd8 {[%clk 0:00:08]} 47. Rxc8+ {[%clk 0:01:01]}  Kxc8 {[%clk 0:00:08]} 48. Kxd6 {[%clk 0:01:02]}  f4 {[%clk 0:00:07]} 49. gxf4 {[%clk 0:01:02]}  exf4 {[%clk 0:00:07]} 50. Ke5 {[%clk 0:00:59]}  g5 {[%clk 0:00:06]} 51. Kf5 {[%clk 0:01:00]} 1-0


[Site "https://www.chess.com"]

[Event "Titled Tuesday Blitz October 31 Early 2023"]
[White "Mikaelyan, Arman"]
[Black "Estrada Nieto, Julian"]
[WhiteFideId "13304852"]
[BlackFideId "5101018"]
[WhiteElo "2907"]
[BlackElo "2518"]
[Result "1-0"]
[Round "3"]
[TimeControl "180+1"]
[Date "2023.10.31"]
[WhiteClock "0:01:22"]
[BlackClock "0:01:23"]
[Board "60"]

1. d4 {[%clk 0:03:00]}  d5 {[%clk 0:02:59]} 2. Nf3 {[%clk 0:03:01]}  Nf6 {[%clk 0:02:59]} 3. c4 {[%clk 0:03:01]}  dxc4 {[%clk 0:03:00]} 4. e3 {[%clk 0:03:01]}  e6 {[%clk 0:03:00]} 5. Bxc4 {[%clk 0:03:02]}  a6 {[%clk 0:03:01]} 6. O-O {[%clk 0:03:02]}  c5 {[%clk 0:03:01]} 7. b3 {[%clk 0:03:00]}  Nc6 {[%clk 0:02:56]} 8. Bb2 {[%clk 0:03:00]}  cxd4 {[%clk 0:02:56]} 9. Nxd4 {[%clk 0:03:01]}  Bd7 {[%clk 0:02:56]} 10. Nf3 {[%clk 0:02:58]}  Be7 {[%clk 0:02:55]} 11. Nbd2 {[%clk 0:02:56]}  O-O {[%clk 0:02:54]} 12. Be2 {[%clk 0:02:55]}  Nd5 {[%clk 0:02:48]} 13. Rc1 {[%clk 0:02:41]}  Bf6 {[%clk 0:02:47]} 14. Bxf6 {[%clk 0:02:42]}  Qxf6 {[%clk 0:02:47]} 15. Ne4 {[%clk 0:02:42]}  Qb2 {[%clk 0:02:37]} 16. Nc5 {[%clk 0:02:39]}  Bc8 {[%clk 0:02:20]} 17. Rc2 {[%clk 0:02:35]}  Qa3 {[%clk 0:02:20]} 18. Qa1 {[%clk 0:01:42]}  Ncb4 {[%clk 0:02:09]} 19. Rd2 {[%clk 0:01:37]}  b6 {[%clk 0:02:05]} 20. Ne4 {[%clk 0:01:25]}  Rd8 {[%clk 0:01:57]} 21. Ne5 {[%clk 0:01:23]}  Bb7 {[%clk 0:01:23]} 22. Nc4 {[%clk 0:01:22]} 1-0


[Site "https://www.chess.com"]

[Event "Titled Tuesday Blitz October 31 Early 2023"]
[White "Erdogmus, Yagiz Kaan"]
[Black "Reprintsev, Alexander"]
[WhiteFideId "44599790"]
[BlackFideId "14100541"]
[WhiteElo "2901"]
[BlackElo "2514"]
[Result "1-0"]
[Round "3"]
[TimeControl "180+1"]
[Date "2023.10.31"]
[WhiteClock "0:01:17"]
[BlackClock "0:01:27"]
[Board "62"]

1. d4 {[%clk 0:03:00]}  d5 {[%clk 0:02:56]} 2. c4 {[%clk 0:03:00]}  e5 {[%clk 0:02:55]} 3. dxe5 {[%clk 0:02:55]}  d4 {[%clk 0:02:55]} 4. Nf3 {[%clk 0:02:55]}  Nc6 {[%clk 0:02:55]} 5. g3 {[%clk 0:02:53]}  Nge7 {[%clk 0:02:53]} 6. Nbd2 {[%clk 0:02:50]}  Ng6 {[%clk 0:02:53]} 7. Nb3 {[%clk 0:02:49]}  Ngxe5 {[%clk 0:02:21]} 8. Nxe5 {[%clk 0:02:48]}  Nxe5 {[%clk 0:02:19]} 9. Nxd4 {[%clk 0:02:48]}  Bb4+ {[%clk 0:02:16]} 10. Bd2 {[%clk 0:02:44]}  Qxd4 {[%clk 0:02:06]} 11. Bxb4 {[%clk 0:02:44]}  Qe4 {[%clk 0:02:06]} 12. Qd5 {[%clk 0:01:52]}  Nf3+ {[%clk 0:02:05]} 13. Kd1 {[%clk 0:01:52]}  Qxd5+ {[%clk 0:02:05]} 14. cxd5 {[%clk 0:01:53]}  Nd4 {[%clk 0:01:59]} 15. Bc3 {[%clk 0:01:49]}  Nf5 {[%clk 0:01:56]} 16. e4 {[%clk 0:01:49]}  Nd6 {[%clk 0:01:55]} 17. f3 {[%clk 0:01:49]}  f6 {[%clk 0:01:55]} 18. Bd3 {[%clk 0:01:47]}  c6 {[%clk 0:01:54]} 19. dxc6 {[%clk 0:01:47]}  bxc6 {[%clk 0:01:55]} 20. Bb4 {[%clk 0:01:44]}  Nf7 {[%clk 0:01:53]} 21. Rc1 {[%clk 0:01:34]}  Bd7 {[%clk 0:01:47]} 22. Kc2 {[%clk 0:01:31]}  Ne5 {[%clk 0:01:38]} 23. Be2 {[%clk 0:01:30]}  Be6 {[%clk 0:01:36]} 24. f4 {[%clk 0:01:25]}  Nd7 {[%clk 0:01:35]} 25. b3 {[%clk 0:01:19]}  c5 {[%clk 0:01:33]} 26. Ba3 {[%clk 0:01:17]}  Kf7 {[%clk 0:01:27]} 27. f5 {[%clk 0:01:17]} 1-0


[Site "https://www.chess.com"]

[Event "Titled Tuesday Blitz October 31 Early 2023"]
[White "subham777"]
[Black "Henriquez Villagra, Cristobal"]
[BlackFideId "3409350"]
[WhiteElo "2513"]
[BlackElo "2889"]
[Result "0-1"]
[Round "3"]
[TimeControl "180+1"]
[Date "2023.10.31"]
[WhiteClock "0:00:00"]
[BlackClock "0:01:01"]
[Board "63"]

1. e4 {[%clk 0:03:00]}  d6 {[%clk 0:02:55]} 2. g3 {[%clk 0:03:00]}  g6 {[%clk 0:02:49]} 3. Bg2 {[%clk 0:02:59]}  Bg7 {[%clk 0:02:48]} 4. Ne2 {[%clk 0:03:00]}  f5 {[%clk 0:02:48]} 5. exf5 {[%clk 0:02:55]}  gxf5 {[%clk 0:02:43]} 6. O-O {[%clk 0:02:44]}  Nf6 {[%clk 0:02:43]} 7. d4 {[%clk 0:02:43]}  c6 {[%clk 0:02:37]} 8. Nf4 {[%clk 0:02:40]}  O-O {[%clk 0:02:29]} 9. Nh5 {[%clk 0:02:18]}  Nxh5 {[%clk 0:02:23]} 10. Qxh5 {[%clk 0:02:17]}  Bxd4 {[%clk 0:02:21]} 11. Nc3 {[%clk 0:01:59]}  Qe8 {[%clk 0:02:18]} 12. Qd1 {[%clk 0:01:49]}  Bg7 {[%clk 0:02:16]} 13. Re1 {[%clk 0:01:43]}  Nd7 {[%clk 0:02:06]} 14. Bg5 {[%clk 0:01:31]}  Nf6 {[%clk 0:02:05]} 15. Qd2 {[%clk 0:01:25]}  Qf7 {[%clk 0:01:23]} 16. Re2 {[%clk 0:00:52]}  Bd7 {[%clk 0:01:23]} 17. Rae1 {[%clk 0:00:47]}  Rae8 {[%clk 0:01:24]} 18. Nd1 {[%clk 0:00:20]}  Kh8 {[%clk 0:01:09]} 19. b3 {[%clk 0:00:17]}  a6 {[%clk 0:01:09]} 20. Nb2 {[%clk 0:00:17]}  Ne4 {[%clk 0:01:04]} 21. Bxe4 {[%clk 0:00:16]}  fxe4 {[%clk 0:01:05]} 22. Nc4 {[%clk 0:00:15]}  d5 {[%clk 0:01:05]} 23. Ne3 {[%clk 0:00:13]}  h6 {[%clk 0:01:02]} 24. Bh4 {[%clk 0:00:12]}  Bh3 {[%clk 0:01:01]} 25. f4 {[%clk 0:00:07]}  exf3 {[%clk 0:01:01]} 26. Rf2 {[%clk 0:00:06]}  e5 {[%clk 0:01:02]} 27. g4 {[%clk 0:00:03]}  e4 {[%clk 0:01:02]} 28. Nf5 {[%clk 0:00:03]}  Re6 {[%clk 0:00:59]} 29. Bg3 {[%clk 0:00:03]}  Bxg4 {[%clk 0:01:00]} 30. Nd6 {[%clk 0:00:03]}  Qg6 {[%clk 0:01:00]} 31. Nxb7 {[%clk 0:00:02]}  d4 {[%clk 0:01:01]} 32. Nc5 {[%clk 0:00:02]}  e3 {[%clk 0:01:00]} 33. Nxe6 {[%clk 0:00:00]}  Qxe6 {[%clk 0:01:01]} 0-1


[Site "https://www.chess.com"]

[Event "Titled Tuesday Blitz October 31 Early 2023"]
[White "Alinasab, Mobina"]
[Black "Lobanov, Sergei"]
[WhiteFideId "12528897"]
[BlackFideId "24183750"]
[WhiteElo "2510"]
[BlackElo "2840"]
[Result "1-0"]
[Round "3"]
[TimeControl "180+1"]
[Date "2023.10.31"]
[WhiteClock "0:00:06"]
[BlackClock "0:00:00"]
[Board "65"]

1. e4 {[%clk 0:03:00]}  e5 {[%clk 0:02:59]} 2. Bc4 {[%clk 0:02:59]}  Nf6 {[%clk 0:02:59]} 3. Nc3 {[%clk 0:02:59]}  Nc6 {[%clk 0:02:58]} 4. d3 {[%clk 0:02:59]}  Bb4 {[%clk 0:02:58]} 5. Ne2 {[%clk 0:02:58]}  d5 {[%clk 0:02:56]} 6. exd5 {[%clk 0:02:59]}  Nxd5 {[%clk 0:02:57]} 7. O-O {[%clk 0:02:42]}  Be6 {[%clk 0:02:55]} 8. Bxd5 {[%clk 0:02:36]}  Bxd5 {[%clk 0:02:56]} 9. f4 {[%clk 0:02:37]}  O-O {[%clk 0:02:48]} 10. Nxd5 {[%clk 0:02:31]}  Qxd5 {[%clk 0:02:48]} 11. f5 {[%clk 0:02:32]}  e4 {[%clk 0:02:41]} 12. d4 {[%clk 0:01:48]}  Be7 {[%clk 0:02:06]} 13. Be3 {[%clk 0:01:39]}  Bf6 {[%clk 0:01:52]} 14. c3 {[%clk 0:01:25]}  Rfe8 {[%clk 0:01:35]} 15. Ng3 {[%clk 0:01:24]}  Be7 {[%clk 0:01:11]} 16. Qg4 {[%clk 0:01:07]}  Bf8 {[%clk 0:01:11]} 17. Nh5 {[%clk 0:00:58]}  Kh8 {[%clk 0:01:08]} 18. Bh6 {[%clk 0:00:41]}  g6 {[%clk 0:00:48]} 19. fxg6 {[%clk 0:00:32]}  fxg6 {[%clk 0:00:48]} 20. Nf6 {[%clk 0:00:17]}  Qe6 {[%clk 0:00:49]} 21. Qh4 {[%clk 0:00:08]}  Bxh6 {[%clk 0:00:18]} 22. Qxh6 {[%clk 0:00:09]}  Re7 {[%clk 0:00:19]} 23. d5 {[%clk 0:00:09]}  Qe5 {[%clk 0:00:12]} 24. dxc6 {[%clk 0:00:09]}  bxc6 {[%clk 0:00:12]} 25. Nxh7 {[%clk 0:00:08]}  Qg7 {[%clk 0:00:13]} 26. Qxg7+ {[%clk 0:00:08]}  Kxg7 {[%clk 0:00:13]} 27. Ng5 {[%clk 0:00:09]}  e3 {[%clk 0:00:12]} 28. Rae1 {[%clk 0:00:09]}  Rd8 {[%clk 0:00:13]} 29. Re2 {[%clk 0:00:09]}  Rd2 {[%clk 0:00:12]} 30. Rfe1 {[%clk 0:00:09]}  Red7 {[%clk 0:00:07]} 31. h3 {[%clk 0:00:07]}  Rxe2 {[%clk 0:00:04]} 32. Rxe2 {[%clk 0:00:08]}  Rd1+ {[%clk 0:00:05]} 33. Kh2 {[%clk 0:00:06]}  Rd2 {[%clk 0:00:06]} 34. Re1 {[%clk 0:00:06]}  e2 {[%clk 0:00:05]} 35. Nf3 {[%clk 0:00:06]}  Rxb2 {[%clk 0:00:06]} 36. Nd4 {[%clk 0:00:05]}  c5 {[%clk 0:00:04]} 37. Nxe2 {[%clk 0:00:06]}  Rxa2 {[%clk 0:00:04]} 38. Nf4 {[%clk 0:00:06]}  Kf6 {[%clk 0:00:03]} 39. Nd5+ {[%clk 0:00:06]}  Kf5 {[%clk 0:00:03]} 40. Nxc7 {[%clk 0:00:07]}  a5 {[%clk 0:00:03]} 41. Na6 {[%clk 0:00:05]}  c4 {[%clk 0:00:03]} 42. Rd1 {[%clk 0:00:05]}  Ra3 {[%clk 0:00:02]} 43. Rd5+ {[%clk 0:00:05]}  Ke6 {[%clk 0:00:03]} 44. Rc5 {[%clk 0:00:05]}  Rxc3 {[%clk 0:00:03]} 45. Rxa5 {[%clk 0:00:06]}  Rc1 {[%clk 0:00:04]} 46. Rg5 {[%clk 0:00:05]}  Kf6 {[%clk 0:00:04]} 47. Rc5 {[%clk 0:00:06]}  c3 {[%clk 0:00:04]} 48. Nb4 {[%clk 0:00:06]}  Ke6 {[%clk 0:00:05]} 49. Rc6+ {[%clk 0:00:06]}  Kd7 {[%clk 0:00:05]} 50. Rxg6 {[%clk 0:00:06]}  Rb1 {[%clk 0:00:05]} 51. Nd3 {[%clk 0:00:05]}  Rd1 {[%clk 0:00:05]} 52. Rg3 {[%clk 0:00:04]}  c2 {[%clk 0:00:05]} 53. h4 {[%clk 0:00:04]}  Ke8 {[%clk 0:00:05]} 54. Re3+ {[%clk 0:00:04]}  Kf8 {[%clk 0:00:05]} 55. Rf3+ {[%clk 0:00:04]}  Kg8 {[%clk 0:00:06]} 56. Rf2 {[%clk 0:00:04]}  Rxd3 {[%clk 0:00:02]} 57. Rxc2 {[%clk 0:00:04]}  Kh7 {[%clk 0:00:03]} 58. g3 {[%clk 0:00:05]}  Kg6 {[%clk 0:00:03]} 59. Kh3 {[%clk 0:00:05]}  Kh5 {[%clk 0:00:04]} 60. Rc5+ {[%clk 0:00:06]}  Kh6 {[%clk 0:00:04]} 61. Rb5 {[%clk 0:00:04]}  Kg6 {[%clk 0:00:05]} 62. Ra5 {[%clk 0:00:04]}  Kh6 {[%clk 0:00:05]} 63. Rf5 {[%clk 0:00:04]}  Rc3 {[%clk 0:00:05]} 64. Kg4 {[%clk 0:00:04]}  Rc4+ {[%clk 0:00:05]} 65. Rf4 {[%clk 0:00:05]}  Rc5 {[%clk 0:00:05]} 66. Re4 {[%clk 0:00:05]}  Rc6 {[%clk 0:00:05]} 67. Kf4 {[%clk 0:00:05]}  Rf6+ {[%clk 0:00:05]} 68. Kg4 {[%clk 0:00:05]}  Ra6 {[%clk 0:00:05]} 69. Rf4 {[%clk 0:00:06]}  Rg6+ {[%clk 0:00:05]} 70. Kf3 {[%clk 0:00:06]}  Ra6 {[%clk 0:00:06]} 71. g4 {[%clk 0:00:06]}  Ra3+ {[%clk 0:00:06]} 72. Ke4 {[%clk 0:00:07]}  Ra4+ {[%clk 0:00:04]} 73. Kf5 {[%clk 0:00:07]}  Ra5+ {[%clk 0:00:04]} 74. Ke6 {[%clk 0:00:07]}  Ra6+ {[%clk 0:00:05]} 75. Kf7 {[%clk 0:00:07]}  Ra7+ {[%clk 0:00:02]} 76. Kg8 {[%clk 0:00:07]}  Rg7+ {[%clk 0:00:03]} 77. Kf8 {[%clk 0:00:07]}  Ra7 {[%clk 0:00:03]} 78. Rf6+ {[%clk 0:00:06]}  Kh7 {[%clk 0:00:01]} 79. g5 {[%clk 0:00:06]}  Kh8 {[%clk 0:00:00]} 80. Rh6+ {[%clk 0:00:06]} 1-0


[Site "https://www.chess.com"]

[Event "Titled Tuesday Blitz October 31 Early 2023"]
[White "Ashraf, Artin"]
[Black "Kubicka, Anna"]
[WhiteFideId "22514805"]
[BlackFideId "1152254"]
[WhiteElo "2830"]
[BlackElo "2508"]
[Result "1-0"]
[Round "3"]
[TimeControl "180+1"]
[Date "2023.10.31"]
[WhiteClock "0:01:32"]
[BlackClock "0:00:03"]
[Board "66"]

1. d4 {[%clk 0:03:00]}  Nf6 {[%clk 0:02:59]} 2. e3 {[%clk 0:03:00]}  d5 {[%clk 0:02:59]} 3. Nf3 {[%clk 0:03:00]}  e6 {[%clk 0:02:55]} 4. c4 {[%clk 0:02:51]}  Be7 {[%clk 0:02:54]} 5. Nc3 {[%clk 0:02:49]}  O-O {[%clk 0:02:54]} 6. Bd3 {[%clk 0:02:35]}  dxc4 {[%clk 0:02:54]} 7. Bxc4 {[%clk 0:02:35]}  a6 {[%clk 0:02:54]} 8. a4 {[%clk 0:02:35]}  c5 {[%clk 0:02:50]} 9. O-O {[%clk 0:02:34]}  Qc7 {[%clk 0:02:37]} 10. Qe2 {[%clk 0:02:30]}  cxd4 {[%clk 0:02:33]} 11. exd4 {[%clk 0:02:30]}  Nbd7 {[%clk 0:02:15]} 12. Bg5 {[%clk 0:02:09]}  Nb6 {[%clk 0:02:05]} 13. Bd3 {[%clk 0:02:08]}  Nfd5 {[%clk 0:01:57]} 14. Qe4 {[%clk 0:02:06]}  g6 {[%clk 0:01:35]} 15. Bxe7 {[%clk 0:02:05]}  Qxe7 {[%clk 0:01:27]} 16. a5 {[%clk 0:02:05]}  Nf6 {[%clk 0:01:13]} 17. Qh4 {[%clk 0:02:04]}  Nbd5 {[%clk 0:01:13]} 18. Nxd5 {[%clk 0:02:03]}  Nxd5 {[%clk 0:01:11]} 19. Qh6 {[%clk 0:02:01]}  Qf6 {[%clk 0:01:05]} 20. Ne5 {[%clk 0:01:59]}  Rd8 {[%clk 0:00:44]} 21. Be4 {[%clk 0:01:56]}  Qf4 {[%clk 0:00:20]} 22. Qxf4 {[%clk 0:01:53]}  Nxf4 {[%clk 0:00:21]} 23. Rfd1 {[%clk 0:01:50]}  f6 {[%clk 0:00:17]} 24. Nc4 {[%clk 0:01:49]}  Rb8 {[%clk 0:00:14]} 25. Nb6 {[%clk 0:01:46]}  Bd7 {[%clk 0:00:15]} 26. g3 {[%clk 0:01:44]}  Ne2+ {[%clk 0:00:08]} 27. Kg2 {[%clk 0:01:43]}  Bb5 {[%clk 0:00:09]} 28. d5 {[%clk 0:01:41]}  exd5 {[%clk 0:00:08]} 29. Nxd5 {[%clk 0:01:41]}  Kg7 {[%clk 0:00:07]} 30. Bf3 {[%clk 0:01:41]}  Rd6 {[%clk 0:00:06]} 31. Rd2 {[%clk 0:01:39]}  Rbd8 {[%clk 0:00:05]} 32. Rad1 {[%clk 0:01:39]}  f5 {[%clk 0:00:04]} 33. b4 {[%clk 0:01:36]}  Bc4 {[%clk 0:00:04]} 34. Bxe2 {[%clk 0:01:34]}  Bxe2 {[%clk 0:00:04]} 35. Rxe2 {[%clk 0:01:35]}  Rxd5 {[%clk 0:00:04]} 36. Rxd5 {[%clk 0:01:35]}  Rxd5 {[%clk 0:00:05]} 37. Re7+ {[%clk 0:01:36]}  Kf6 {[%clk 0:00:05]} 38. Rxb7 {[%clk 0:01:37]}  h5 {[%clk 0:00:04]} 39. Rb6+ {[%clk 0:01:37]}  Kg5 {[%clk 0:00:04]} 40. h4+ {[%clk 0:01:37]}  Kh6 {[%clk 0:00:03]} 41. Rxa6 {[%clk 0:01:37]}  Rb5 {[%clk 0:00:04]} 42. Rb6 {[%clk 0:01:38]}  Re5 {[%clk 0:00:04]} 43. a6 {[%clk 0:01:37]}  Re2 {[%clk 0:00:05]} 44. b5 {[%clk 0:01:36]}  Ra2 {[%clk 0:00:05]} 45. Rb7 {[%clk 0:01:36]}  Ra3 {[%clk 0:00:05]} 46. a7 {[%clk 0:01:36]}  f4 {[%clk 0:00:04]} 47. b6 {[%clk 0:01:35]}  f3+ {[%clk 0:00:05]} 48. Kh2 {[%clk 0:01:34]}  Ra2 {[%clk 0:00:05]} 49. Rf7 {[%clk 0:01:30]}  Rxf2+ {[%clk 0:00:05]} 50. Kg1 {[%clk 0:01:31]}  Rg2+ {[%clk 0:00:05]} 51. Kf1 {[%clk 0:01:31]}  Ra2 {[%clk 0:00:03]} 52. Rxf3 {[%clk 0:01:32]}  g5 {[%clk 0:00:04]} 53. Rf6+ {[%clk 0:01:32]}  Kg7 {[%clk 0:00:03]} 54. hxg5 {[%clk 0:01:32]} 1-0


[Site "https://www.chess.com"]